[Event "Austrian Women Bundesliga 2023-24"]
[Site "Austria"]
[Date "2024.04.14"]
[Round "9.14"]
[White "Schloffer, Jasmin-Denise"]
[Black "Papp, Sarah"]
[Result "0-1"]
[ECO "E46"]
[WhiteElo "2167"]
[BlackElo "2281"]
[Annotator "TA"]
[PlyCount "84"]
[EventDate "2023.11.21"]
[EventType "team-tourn"]
[EventCountry "AUT"]
[SourceTitle "playchess.com"]
[Source "ChessBase"]
[SourceQuality "1"]
[TimeControl "40/5400+30:1800+30"]

{[%evp 9,84,4,2,4,17,8,4,8,4,0,22,6,0,-2,0,0,19,16,41,44,23,0,62,30,29,24,11,0,0,0,0,-29,-27,-73,-72,-95,-88,-100,-91,-144,-138,-166,-66,-60,-55,-63,-62,-59,-60,-81,-59,-72,-71,-134,-62,-129,-127,-164,-168,-157,-157,-208,-180,-207,-191,-213,-196,-264,-237,-256,-250,-318,-325,-355,-341,-356,-356]} 1. d4 {[%emt 0:00:03]} Nf6 {[%emt 0:00:04]} 2. c4 {[%emt 0:00:05]} e6 {[%emt 0:00:03]} 3. Nc3 {[%emt 0:00:04]} Bb4 {[%emt 0:00:04]} 4. e3 {[%emt 0:00:05]} O-O {[%emt 0:00:18]} 5. Bd2 {[%emt 0:00:05]} c5 {[%emt 0:00:44]} 6. a3 {[%emt 0:00:18]} Bxc3 {[%emt 0:00:07]} 7. Bxc3 {[%emt 0:00:04]} Ne4 {[%emt 0:01:42]} 8. Ne2 {[%emt 0:00:09] The position is equal.} b6 {[%emt 0:01:00]} 9. d5 {[%emt 0:03:24]} Ba6 {[%emt 0:01:23]} 10. Qc2 {[%emt 0:14:00]} exd5 {[%emt 0:13:07]} (10... f5 {simplifies} 11. Ng3 exd5 12. Nxe4 dxe4 13. Qd2 Rf7) 11. cxd5 {[%emt 0:00:07]} Qh4 {[%emt 0:07:40]} (11... Nxc3 {simplifies} 12. Nxc3 Bxf1 13. Kxf1 d6) 12. g3 {[%emt 0:04:16]} Qg4 {[%emt 0:01:32]} 13. Bg2 {[%emt 0:03:52] Prevents Qf3.} Nxc3 {[%emt 0:10:25]} (13... Qxe2+ {simplifies} 14. Qxe2 Bxe2 15. Bxe4 Bc4) 14. Nxc3 {[%emt 0:07:54]} ({Of course not} 14. bxc3 d6 $11) 14... d6 {[%emt 0:02:31]} 15. Qe4 {[%emt 0:02:28]} Qg6 {[%emt 0:11:30]} (15... Qxe4 $11 16. Nxe4 Nd7) 16. Qxg6 {[%emt 0:19:02]} hxg6 {[%emt 0:01:42]} 17. Ne4 {[%emt 0:03:33]} Nd7 {[%emt 0:01:30][%cal Bb8d7,Bd7e5,Be5d3][%mdl 32]} 18. Nxd6 {[%emt 0:06:33]} Ne5 {[%emt 0:01:13] Hoping for ...Nd3+.} 19. a4 {[%emt 0:02:57]} Nd3+ $1 {[%emt 0:01:40]} 20. Kd2 {[%emt 0:00:04]} Nxf2 {[%emt 0:04:30]} 21. Rhb1 {[%emt 0:02:38] [#]} (21. Rhg1 $11) 21... Bd3 $1 $17 {[%emt 0:06:25]} 22. Rc1 {[%emt 0:03:19]} Rad8 {[%emt 0:04:54]} 23. Nb5 {[%emt 0:04:25]} Be4 {[%emt 0:01:38] Black is more active.} 24. Bxe4 {[%emt 0:01:37]} (24. Ke2 $142 Bxg2 25. Kxf2 Bxd5 26. Nxa7) 24... Nxe4+ {[%emt 0:00:02]} 25. Ke2 {[%emt 0:04:29]} a6 {[%emt 0:06:21]} (25... Rxd5 $19 {Threatens to win with ...Rd2+.} 26. Rc2 Rfd8) 26. Nc3 $15 {[%emt 0:02:22]} Nxc3+ {[%emt 0:00:18]} 27. bxc3 {[%emt 0:00:18]} Rxd5 {[%emt 0:00:19][%mdl 4096] Endgame. KRR-KRR} 28. c4 {[%emt 0:00:39]} Rh5 {[%emt 0:05:04]} 29. h4 {[%emt 0:02:28]} g5 {[%emt 0:01:26]} 30. hxg5 {[%emt 0:00:16]} Rxg5 {[%emt 0:00:15]} 31. Kf3 {[%emt 0:01:18] [#]} (31. a5 $142) 31... Re8 {[%emt 0:02:56]} (31... a5 $1 $17 32. Rd1 Rg6) 32. Rab1 {[%emt 0:02:17]} ({White should play} 32. a5 $15 Rf5+ 33. Ke2 bxa5 34. Rxa5) 32... Re6 {[%emt 0:01:20]} 33. Rg1 {[%emt 0:02:47]} Rf6+ {[%emt 0:03:56]} 34. Ke2 {[%emt 0:00:17]} Rg4 {[%emt 0:00:18]} 35. Rbc1 {[%emt 0:02:54]} (35. Rgf1 $17 {was necessary.}) 35... Kf8 {[%emt 0:00:47]} 36. Kd3 {[%emt 0:04:25]} Ke7 {[%emt 0:00:45]} 37. a5 {[%emt 0:01:19]} Rd6+ {[%emt 0:02:25]} 38. Kc3 {[%emt 0:00:20]} (38. Ke2 $142) 38... b5 $19 {[%emt 0:01:11]} ({Resist} 38... bxa5 39. Ra1 $17) 39. cxb5 {[%emt 0:01:06]} axb5 {[%emt 0:00:04]} 40. Ra1 {[%emt 0:00:04]} Ra6 {[%emt 0:01:09]} ({But not} 40... Rc4+ 41. Kb2 Rd2+ 42. Kb1 Rb4+ 43. Kc1 $19) 41. Kb3 {[%emt 0:03:00]} Rb4+ {[%emt 0:03:43]} 42. Kc3 {[%emt 0:00:50]} Ra4 {[%emt 0:00:40] Weighted Error Value: White=0.22 (precise) /Black=0.12 (very precise) .  Mistake:       	White=6     	Black=3      Inaccurate:     	White=2     	---        OK:         	White=11    	Black=16     Best:        	---       	Black=2      Strong:       	---       	Black=2} 0-1

[Event "Austrian Women Bundesliga 2023-24"]
[Site "Austria"]
[Date "2024.04.14"]
[Round "9.15"]
[White "Matnadze Bujiashvili, Ann"]
[Black "Konecny, Sophie"]
[Result "1-0"]
[ECO "E01"]
[WhiteElo "2359"]
[BlackElo "1907"]
[Annotator "TA"]
[PlyCount "97"]
[EventDate "2023.11.21"]
[EventType "team-tourn"]
[EventCountry "AUT"]
[SourceTitle "playchess.com"]
[Source "ChessBase"]
[SourceQuality "1"]
[TimeControl "40/5400+30:1800+30"]

{[%evp 9,97,21,19,29,31,35,44,23,27,28,31,11,54,7,39,13,32,2,43,22,25,27,23,0,0,0,11,-13,120,118,117,141,161,143,140,133,122,125,123,117,106,9,8,18,18,11,71,68,63,72,79,24,93,45,56,60,43,62,52,0,0,0,110,0,0,0,104,103,230,141,321,127,646,622,562,646,653,616,786,805,29973,29977,29976,29977,29979,29980,29981,29982,29982,29983]} 1. d4 {[%emt 0:00:05]} Nf6 {[%emt 0:00:08]} 2. Nf3 {[%emt 0:00:07]} e6 {[%emt 0:00:05]} 3. c4 {[%emt 0:00:04]} d5 {[%emt 0:00:04]} 4. g3 {[%emt 0:00:04]} Bd6 {[%emt 0:00:10]} 5. Bg2 {[%emt 0:00:06]} O-O {[%emt 0:00:06]} 6. Nc3 {[%emt 0:02:29]} h6 {[%emt 0:04:12]} 7. O-O {[%emt 0:00:22]} Nc6 {[%emt 0:00:58]} 8. b3 {[%emt 0:05:40] White is slightly better.} dxc4 {[%emt 0:04:00]} 9. bxc4 {[%emt 0:00:05]} e5 {[%emt 0:02:01]} 10. e3 {[%emt 0:03:00]} Bf5 {[%emt 0:14:51]} 11. Nb5 {[%emt 0:13:05]} (11. Bb2 $14 {deserves consideration.}) 11... e4 {[%emt 0:04:26]} 12. Nd2 {[%emt 0:00:40]} Re8 {[%emt 0:03:01]} 13. Nxd6 {[%emt 0:01:37]} Qxd6 {[%emt 0:01:23]} 14. Rb1 {[%emt 0:01:26]} b6 {[%emt 0:04:08]} 15. Qa4 {[%emt 0:05:22]} a5 {[%emt 0:04:30]} 16. Ba3 {[%emt 0:09:29]} Nb4 {[%emt 0:05:55]} 17. Qb3 {[%emt 0:06:40]} Qe6 {[%emt 0:05:55]} 18. Bb2 {[%emt 0:06:32]} Bh3 {[%emt 0:05:22]} (18... Bg6 $11) 19. d5 $16 {[%emt 0:00:13]} Qf5 {[%emt 0:01:55]} 20. Bxh3 {[%emt 0:14:55]} Qxh3 {[%emt 0:00:14]} 21. Bxf6 {[%emt 0:00:04]} gxf6 {[%emt 0:00:06]} 22. f3 {[%emt 0:00:20]} f5 {[%emt 0:08:41]} 23. fxe4 {[%emt 0:07:25]} fxe4 {[%emt 0:01:33]} 24. Rf4 {[%emt 0:01:32]} Nd3 {[%emt 0:03:18]} 25. Rxe4 {[%emt 0:15:51]} (25. Rh4 $16 Qf5 26. Nxe4 (26. Rxh6 $2 Qf2+ 27. Kh1 Ne1 $19) 26... Rxe4 27. Qxd3) 25... Nc5 $11 {[%emt 0:07:55][%csl LRb3,LRe4]} 26. Rxe8+ {[%emt 0:00:05]} Rxe8 {[%emt 0:00:04]} 27. Qc3 {[%emt 0:00:22]} Qf5 {[%emt 0:02:42]} (27... Qh5 $11 {keeps the balance.}) 28. Rf1 $16 {[%emt 0:01:21]} Ne4 {[%emt 0:02:16] [#] aiming for ...Qxf1+.} 29. Qd4 {[%emt 0:02:45]} (29. Rxf5 Nxc3 30. Rf3 Nxa2 $11) 29... Qe5 {[%emt 0:02:14]} 30. Nf3 {[%emt 0:01:27]} (30. Qxe5 $16 Rxe5 31. Nf3) 30... Qh5 {[%emt 0:04:36]} (30... Qe7 $11) 31. Kg2 {[%emt 0:01:16]} (31. Nh4 $16) 31... Qg4 {[%emt 0:02:05]} 32. Ng1 {[%emt 0:00:19]} h5 {[%emt 0:02:34]} 33. Rf4 {[%emt 0:00:10] Dancing on a razor blade.} Qg6 {[%emt 0:01:30]} 34. Nh3 {[%emt 0:00:58]} (34. Nf3 $14 Nd6 35. Ne5 Qc2+ (35... Qg7 36. Nd7 $16) 36. Rf2 Qe4+ 37. Qxe4 Nxe4 38. Rf5 (38. Nxf7 $2 {perishes.} Nxf2 39. Ng5 Ng4 $19)) 34... Nd6 $11 {[%emt 0:03:39]} 35. Qc3 {[%emt 0:01:00]} Ne4 {[%emt 0:00:31] Prevents Nf2} (35... Nf5 $11 {remains equal.} 36. e4 Nd6) 36. Qd4 {[%emt 0:00:05]} (36. Qd3 $16) 36... Nd6 {[%emt 0:00:04]} 37. Qc3 {[%emt 0:00:28]} ({Better is} 37. g4 $11) 37... Ne4 $16 {[%emt 0:00:03]} 38. Qc2 {[%emt 0:00:46]} f5 {[%emt 0:01:28]} (38... Nc5 $16 {was worth a try.} 39. Qxg6+ fxg6) 39. Nf2 {[%emt 0:00:25]} Kh7 $2 {[%emt 0:00:41]} (39... Nd6 $16 {was called for.}) 40. Qd3 $2 {[%emt 0:00:58]} (40. Nxe4 $18 Rxe4 41. Rxe4 fxe4 42. Qf2) 40... Kh6 $2 {[%emt 0:00:31][%mdl 8192]} (40... Nd6 $16 41. Qd4 Qg7) 41. Nxe4 $18 {[%emt 0:04:12]} Rxe4 {[%emt 0:03:51]} 42. Rxe4 {[%emt 0:00:51]} fxe4 {[%emt 0:00:04][%mdl 4096] Endgame. KQ-KQ} 43. Qf1 {[%emt 0:00:15]} Kg7 {[%emt 0:11:17][%cal Bh6g7,Bg7f6,Bf6f5][%mdl 32]} 44. Qf4 {[%emt 0:01:09]} Qf6 {[%emt 0:03:12]} 45. Qxf6+ {[%emt 0:10:16] White mates.} Kxf6 {[%emt 0:00:05]} 46. h4 {[%emt 0:01:36]} a4 {[%emt 0:04:05] [#]} 47. g4 $1 {[%emt 0:00:50][%mdl 512]} hxg4 {[%emt 0:00:33]} (47... Kg6 48. gxh5+) 48. Kg3 {[%emt 0:00:02]} Kf5 {[%emt 0:00:25]} 49. a3 {[%emt 0:00:43] Weighted Error Value: White=0.23 (precise) /Black=0.55.  Loses game:     	---       	Black=2      Missed win:     	White=1     	---        Mistake:       	White=7     	Black=5      Inaccurate:     	White=2     	Black=3      OK:         	White=11    	Black=11     Best:        	White=4     	Black=4} 1-0

[Event "Austrian Women Bundesliga 2023-24"]
[Site "Austria"]
[Date "2024.04.14"]
[Round "9.16"]
[White "Wu, Min"]
[Black "Zatonskih, Anna"]
[Result "1/2-1/2"]
[ECO "C01"]
[WhiteElo "1938"]
[BlackElo "2342"]
[Annotator "TA"]
[PlyCount "63"]
[EventDate "2023.11.21"]
[EventType "team-tourn"]
[EventCountry "AUT"]
[SourceTitle "playchess.com"]
[Source "ChessBase"]
[SourceQuality "1"]
[TimeControl "40/5400+30:1800+30"]

{[%evp 22,63,0,-34,3,-34,-24,-18,-16,-14,0,0,0,0,0,-48,-8,-45,-47,-36,-35,-30,143,140,154,153,144,142,331,218,208,137,129,158,158,12,201,206,254,132,106,116,125,113]} 1. e4 {[%emt 0:00:03]} e6 {[%emt 0:00:04][%cal Be7e6,Be6d5,Bd5c4][%mdl 32]} 2. d4 {[%emt 0:00:12]} d5 {[%emt 0:00:06]} 3. exd5 {[%emt 0:00:05]} exd5 {[%emt 0:00:08]} 4. Nf3 {[%emt 0:00:06]} Nc6 {[%emt 0:02:30]} 5. Bb5 {[%emt 0:05:08]} Bd6 {[%emt 0:03:00]} 6. c4 {[%emt 0:03:04]} dxc4 {[%emt 0:01:52]} 7. d5 {[%emt 0:02:52]} a6 {[%emt 0:00:22]} 8. Ba4 {[%emt 0:00:06]} b5 {[%emt 0:00:11]} 9. dxc6 {[%emt 0:00:16]} bxa4 {[%emt 0:00:06]} 10. Qxa4 {[%emt 0:02:32]} Ne7 {[%emt 0:03:27]} 11. O-O {[%emt 0:14:27]} O-O {[%emt 0:11:44]} 12. Nc3 {[%emt 0:08:52]} Bf5 {[%emt 0:14:43]} 13. Re1 {[%emt 0:12:13]} Bd3 {[%emt 0:07:25] A strong pair of Bishops.} 14. Ne4 {[%emt 0:12:23]} Re8 {[%emt 0:18:12] The position is equal.} 15. Bd2 {[%emt 0:05:42]} Rb8 {[%emt 0:13:44]} 16. Bc3 {[%emt 0:00:52]} Nd5 {[%emt 0:06:12][%cal Be7d5,Bd5f4,Bf4h3][%mdl 32]} 17. Nxd6 {[%emt 0:07:20]} Qxd6 {[%emt 0:00:05]} 18. Nd4 {[%emt 0:04:56]} (18. Rxe8+ $11 Rxe8 19. Qxa6) 18... Nf4 {[%emt 0:04:44]} 19. Qd1 {[%emt 0:01:09]} Rxe1+ {[%emt 0:01:59]} 20. Qxe1 {[%emt 0:00:19]} Qg6 {[%emt 0:02:49][%csl Gf4][%cal Rg6g2]} 21. g3 {[%emt 0:01:14] aiming for Qe5.} h5 $2 {[%emt 0:00:43] [#]} (21... Nh3+ 22. Kh1 Ng5 23. f3 $11) ({Black should play} 21... Ne2+ $11 22. Nxe2 Re8) 22. Qe5 $1 $16 {[%emt 0:04:39][%csl LRc7,LRf4]} Nh3+ {[%emt 0:01:09]} 23. Kg2 {[%emt 0:00:19]} Ng5 {[%emt 0:00:34][%cal Ob8b5]} 24. Re1 {[%emt 0:03:42] Black is weak on the dark squares} h4 $2 {[%emt 0:03:51]} (24... Rc8 $16 {keeps fighting.} 25. f3 Nh7) 25. f3 {[%emt 0:01:13]} (25. gxh4 Be4+ (25... Ne4+ 26. Kf3 $16) 26. Kf1 Bd3+ 27. Kg2 Be4+ (27... Ne4+ 28. Kf3 $14) 28. Kf1 Bd3+ 29. Kg2 $11) 25... Rc8 {[%emt 0:01:00]} 26. Qf4 {[%emt 0:01:31]} (26. gxh4 $2 Ne4+ $19) 26... hxg3 {[%emt 0:00:49]} 27. hxg3 {[%emt 0:00:29]} f6 {[%emt 0:01:10] [#]} 28. Qg4 {[%emt 0:03:50] Prevents Qh5} (28. g4 $1 $16) 28... Rd8 $2 {[%emt 0:00:33]} (28... Re8 $1 $11 {and Black is okay.}) 29. Re7 $18 {[%emt 0:01:56]} Qh6 {[%emt 0:00:55]} 30. Nf5 {[%emt 0:01:23] Active counter play!} (30. Rxc7 Bf1+ 31. Kxf1 Qh1+ 32. Kf2 Qh2+ 33. Ke1 Qg1+ 34. Ke2 (34. Kd2 Qf2+ 35. Kd1 Qf1+ 36. Kc2 Qd3+ 37. Kc1 Qf1+ 38. Kd2 Qg2+ 39. Ke1 Qg1+ 40. Kd2 Qf2+ 41. Kd1 Qf1+ 42. Kc2 Qd3+ 43. Kc1 Qf1+ 44. Kd2 Qf2+ $11) 34... Re8+ 35. Kd2 Qg2+ 36. Kd1 Qf1+ 37. Kd2 Qd3+ 38. Kc1 Qf1+ 39. Kc2 Qd3+ 40. Kc1 Qf1+ 41. Kc2 Qd3+ 42. Kc1 $11) (30. Qh4 $18 {And now Qxh6 would win.} Qg6 31. Rxc7) 30... Bxf5 $16 {[%emt 0:00:38]} 31. Qxf5 {[%emt 0:00:04][%cal Of3f4] f4! is the strong threat.} Rd1 {[%emt 0:00:26] ( -> ...Qh1+)} 32. Qc8+ {[%emt 0:01:38] Weighted Error Value: White=0.41/Black=0.40.  Loses game:     	---       	Black=2      Mistake:       	White=3     	Black=1      Inaccurate:     	White=4     	Black=1      OK:         	White=4     	Black=7      Best:        	White=2     	Black=3      Strong:       	White=1     	---} (32. Rxc7 {leads to mate.} Qh1+ 33. Kf2 Rf1+ (33... Qf1+ $2 34. Ke3 $19) 34. Ke3 Qg1+ (34... Rxf3+ $2 35. Qxf3 Qxf3+ 36. Kd4 $19) 35. Kf4 Rxf3+ 36. Kg4 Qxg3+ (36... Rxg3+ {gets mated.} 37. Kh5 Qh2+ 38. Qh3 Qxh3+ 39. Kg6 Qh7#) 37. Kh5 Qh2+ (37... Rxf5 {is a self mate.} 38. Rc8+ Kh7 39. Rh8+ Kxh8 40. Kg6 Qh4 41. Kxf5 Qe4#) (37... Rxf5 38. Rc8+ Kh7 39. Rh8+ Kxh8 40. Kg6 Qh4 41. Kxf5 Qe4#)) 1/2-1/2

[Event "Austrian Women Bundesliga 2023-24"]
[Site "Austria"]
[Date "2024.04.14"]
[Round "9.17"]
[White "Teuschler, Barbara"]
[Black "Mihok-Juhasz, Barbara"]
[Result "0-1"]
[ECO "B48"]
[WhiteElo "2052"]
[BlackElo "2247"]
[Annotator "RC"]
[PlyCount "62"]
[EventDate "2023.11.21"]
[EventType "team-tourn"]
[EventCountry "AUT"]
[SourceTitle "playchess.com"]
[Source "ChessBase"]
[SourceQuality "1"]
[TimeControl "40/5400+30:1800+30"]

1. e4 {[%emt 0:00:01]} c5 {[%emt 0:00:07]} 2. Nf3 {[%emt 0:00:05]} Nc6 {[%emt 0:00:07]} 3. Nc3 {[%emt 0:00:10]} e6 {[%emt 0:00:24]} 4. d4 {[%emt 0:00:09]} cxd4 {[%emt 0:00:09]} 5. Nxd4 {[%emt 0:00:04]} Qc7 {[%emt 0:00:10]} 6. Be3 {[%emt 0:00:21]} a6 {[%emt 0:00:05]} 7. g4 {[%emt 0:00:39]} Nxd4 {[%emt 0:00:42]} 8. Qxd4 {[%emt 0:00:16]} Ne7 {[%emt 0:04:37]} 9. O-O-O {[%emt 0:06:44]} Nc6 {[%emt 0:00:52]} 10. Qd2 {[%emt 0:00:28]} b5 {[%emt 0:02:03]} 11. Kb1 {[%emt 0:03:22]} Ne5 {[%emt 0:19:19]} 12. Bf4 {[%emt 0:05:51]} f6 {[%emt 0:03:57]} 13. h4 {[%emt 0:10:43]} Bb7 {[%emt 0:12:35]} 14. f3 {[%emt 0:12:07]} b4 {[%emt 0:10:56]} 15. Ne2 {[%emt 0:00:50]} Rc8 {[%emt 0:00:05]} 16. Nd4 {[%emt 0:13:16]} Bc5 {[%emt 0:04:33]} 17. Qg2 {[%emt 0:08:13]} Qb6 {[%emt 0:08:58]} 18. Nb3 {[%emt 0:00:48]} Be3 {[%emt 0:01:29]} 19. Bxe3 {[%emt 0:07:06]} Qxe3 {[%emt 0:00:05]} 20. Nd4 {[%emt 0:07:54]} Nxf3 {[%emt 0:14:27]} 21. Qxf3 {[%emt 0:02:05]} Qxf3 {[%emt 0:00:10]} 22. Nxf3 {[%emt 0:00:05]} Bxe4 {[%emt 0:00:05]} 23. Rd3 {[%emt 0:03:10]} Bxd3 {[%emt 0:00:24]} 24. Bxd3 {[%emt 0:00:05]} a5 {[%emt 0:00:40]} 25. Nd4 {[%emt 0:03:06]} Ke7 {[%emt 0:03:42]} 26. h5 {[%emt 0:05:01]} Rc5 {[%emt 0:01:25]} 27. a3 {[%emt 0:00:53]} bxa3 {[%emt 0:05:07]} 28. b3 {[%emt 0:00:01]} Rb8 {[%emt 0:00:33]} 29. Ka2 {[%emt 0:00:20]} Rb4 {[%emt 0:00:12]} 30. c4 {[%emt 0:00:31]} Rb6 {[%emt 0:00:39]} 31. Kxa3 {[%emt 0:03:14]} Rd6 {[%emt 0:00:28]} 0-1

[Event "Austrian Women Bundesliga 2023-24"]
[Site "Austria"]
[Date "2024.04.14"]
[Round "9.18"]
[White "Cvitan, Ena"]
[Black "Myagmarsuren, Mandukhai"]
[Result "1/2-1/2"]
[ECO "D10"]
[WhiteElo "2252"]
[BlackElo "2079"]
[Annotator "TA"]
[PlyCount "107"]
[EventDate "2023.11.21"]
[EventType "team-tourn"]
[EventCountry "AUT"]
[SourceTitle "playchess.com"]
[Source "ChessBase"]
[SourceQuality "1"]
[TimeControl "40/5400+30:1800+30"]

{[%evp 17,107,14,22,20,24,20,20,13,20,16,29,24,27,12,20,13,15,0,15,11,14,18,35,35,57,22,34,27,33,0,10,-8,0,0,0,0,0,0,0,0,0,0,0,-108,-97,-137,-79,-49,-50,-56,-14,-34,0,-74,-7,-77,-62,-43,-32,-128,-114,-126,-125,-220,-220,-204,-80,-64,-27,-74,-13,-11,0,0,0,-12,-14,-40,-55,-55,0,0,0,0,0,0,0,0,0,0,0,0]} 1. d4 {[%emt 0:00:11]} d5 {[%emt 0:00:10]} 2. c4 {[%emt 0:00:07]} c6 {[%emt 0:00:05]} 3. cxd5 {[%emt 0:00:05]} cxd5 {[%emt 0:01:40]} 4. Nc3 {[%emt 0:00:06]} Nf6 {[%emt 0:00:38]} 5. Bf4 {[%emt 0:00:11]} Nc6 {[%emt 0:00:06]} 6. e3 {[%emt 0:00:24]} a6 {[%emt 0:00:06]} 7. Bd3 {[%emt 0:00:22]} Bg4 {[%emt 0:00:06]} 8. Nge2 {[%emt 0:00:03]} e6 {[%emt 0:00:19]} 9. O-O {[%emt 0:00:09]} Bd6 {[%emt 0:00:40]} 10. f3 {[%emt 0:00:31]} Bh5 {[%emt 0:00:18]} 11. Rc1 {[%emt 0:00:23]} Bg6 {[%emt 0:03:32]} 12. Na4 {[%emt 0:01:51]} Bxd3 {[%emt 0:04:20]} 13. Qxd3 {[%emt 0:00:15]} Bxf4 {[%emt 0:00:14]} 14. Nxf4 {[%emt 0:01:17]} O-O {[%emt 0:00:53]} 15. Nc5 {[%emt 0:17:20]} Qe7 {[%emt 0:00:47]} 16. Rc3 {[%emt 0:04:56]} Rfd8 {[%emt 0:15:10]} 17. Ne2 {[%emt 0:08:44]} Na5 {[%emt 0:14:36]} 18. b3 {[%emt 0:03:47]} Rac8 {[%emt 0:09:45]} 19. Rfc1 {[%emt 0:01:59]} Ra8 {[%emt 0:11:03]} 20. Qd2 {[%emt 0:05:45]} Rd6 {[%emt 0:06:24]} 21. Nf4 {[%emt 0:09:49]} Nc6 $1 {[%emt 0:05:16]} 22. Nfd3 {[%emt 0:01:06]} Ne8 {[%emt 0:25:22][%cal Bf6e8,Be8c7,Bc7b5][%mdl 32]} 23. b4 {[%emt 0:08:19]} h6 {[%emt 0:00:00]} 24. Nxa6 {[%emt 0:05:29]} Na5 {[%emt 0:00:00] ...Nc4 would now be deadly.} (24... Rxa6 $5 25. b5 $8 Ra8 26. bxc6 Rxc6 $14) 25. Nac5 {[%emt 0:11:19]} Nc4 {[%emt 0:00:00]} 26. Qe2 {[%emt 0:00:55]} b6 {[%emt 0:00:00]} 27. Nb3 {[%emt 0:00:41]} Nc7 {[%emt 0:00:00]} 28. Ne5 {[%emt 0:01:58]} Nb5 {[%emt 0:00:00]} 29. Rxc4 {[%emt 0:01:02]} dxc4 {[%emt 0:00:00]} 30. Rxc4 {[%emt 0:00:53]} (30. Qxc4 $11 Qe8 31. Nd2) 30... f6 $17 {[%emt 0:00:00]} 31. Nd3 {[%emt 0:03:48]} e5 {[%emt 0:00:00]} ({Better is} 31... Qe8 32. Rc2 Rc6) 32. dxe5 {[%emt 0:00:49]} fxe5 {[%emt 0:00:00]} 33. Nf2 {[%emt 0:00:32]} Rad8 {[%emt 0:00:00][%mdl 1024] Black has compensation.} 34. h3 {[%emt 0:00:56]} Qd7 {[%emt 0:00:00]} 35. Re4 {[%emt 0:01:33] [#]} (35. Rc1 $11) 35... Rd5 {[%emt 0:00:00]} (35... Re6 $1 $17 {Hoping for ...Nc3.} 36. Rc4 Rc6 37. Rxc6 Qxc6) 36. Qb2 {[%emt 0:01:08] [#] Prevents Nc3} (36. Rc4 $11 {keeps the balance.}) 36... Qc7 $1 {[%emt 0:00:00]} 37. Rg4 $1 {[%emt 0:02:21]} Nc3 {[%emt 0:00:00]} 38. Ne4 {[%emt 0:00:45]} (38. Kh2 $1 $15) 38... Nxe4 {[%emt 0:02:34]} 39. Rxe4 {[%emt 0:00:32]} Rc8 {[%emt 0:02:30]} 40. f4 {[%emt 0:06:53]} (40. Qa3 $17 {was worth a try.}) 40... exf4 $19 {[%emt 0:00:30]} 41. exf4 {[%emt 0:30:54]} Rf8 {[%emt 0:09:58]} (41... Qc2 $19 42. Qxc2 Rxc2 43. Re8+ Kh7) 42. Nd4 $17 {[%emt 0:00:00]} Qf7 {[%emt 0:03:52]} (42... Rxf4 $2 {is the wrong capture.} 43. Qb3 $18) (42... Qd6 $5 43. Qb3 Kh8 $17 (43... Rxf4 $2 {loses.} 44. Rxf4 Kh8 45. Qf3 $18)) 43. Nf3 {[%emt 0:00:00]} (43. Qb3 $11) 43... Rd1+ {[%emt 0:01:04]} (43... Rd3 $17) 44. Kh2 $11 {[%emt 0:00:00]} Qf5 {[%emt 0:02:23]} 45. Qe2 {[%emt 0:00:00][%cal Of3h4]} Kh7 {[%emt 0:04:37]} 46. a4 {[%emt 0:00:00]} Rfd8 {[%emt 0:01:19]} 47. a5 {[%emt 0:00:00]} bxa5 {[%emt 0:00:29]} 48. bxa5 {[%emt 0:00:00]} Qxa5 {[%emt 0:01:19]} (48... R8d6 $15) 49. Ng5+ $1 {[%emt 0:00:00] The position is equal.} hxg5 {[%emt 0:00:05]} 50. Qh5+ {[%emt 0:00:00]} Kg8 {[%emt 0:00:03]} 51. Re8+ {[%emt 0:00:00]} Rxe8 {[%emt 0:00:04]} 52. Qxe8+ {[%emt 0:00:00]} Kh7 {[%emt 0:00:03] ( -> ...Qe1)} 53. Qh5+ {[%emt 0:00:00]} Kg8 {[%emt 0:00:03]} 54. Qe8+ {[%emt 0:00:00] Weighted Error Value: White=0.23 (precise) /Black=0.18 (very precise) .  Mistake:       	White=6     	Black=5      Inaccurate:     	White=4     	Black=3      OK:         	White=5     	Black=13     Best:        	White=6     	Black=2      Strong:       	White=2     	Black=2} 1/2-1/2